Cogmind - Beta 10.2 @@@ ROGUE MODE // 2022.02.07 @ 19:48:05 Player: Conner Result: Destroyed by S-10 Pest with Light Assault Rifle Performance ------------- Evolutions (2) 1000 Regions Visited (5) 1000 Robots Destroyed (19) 95 Value Destroyed (490) 490 Prototype IDs (0) 0 Alien Tech Used (0) 0 Bonus (0) 0 TOTAL SCORE: 2585 Bonus ------- None Cogmind --------- Core Integrity 0/550 Matter 51/300 Energy 100/100 System Corruption 0% Temperature Cool (0) Movement Core (50) Location -8/Materials Parts ------- > --- POWER (1) -------- (None) > --- PROPULSION (3) --- (None) > --- UTILITY (5) ------ (None) > --- WEAPON (2) ------- (None) > --- INVENTORY (4) ---- Light Ion Engine Large Storage Unit Core Shielding Advanced Beam Rifle Peak State ------------ > --- POWER ------------ (None) > --- PROPULSION ------- Advanced Treads Advanced Treads Advanced Treads > --- UTILITY ---------- System Shield > --- WEAPON ----------- Light Assault Rifle > --- INVENTORY -------- Light Ion Engine Large Storage Unit Core Shielding [Rating: 13] Favorites ----------- Power Ion Engine Engine Ion Engine Propulsion Wheel Treads Advanced Treads Leg Aluminum Leg Wheel Wheel Flight Unit Cesium-ion Thruster Utility Heat Sink Device Heat Sink Storage Large Storage Unit Processor Seismic Analyzer Hackware System Shield Protection Medium Armor Plating Weapon Medium Laser Energy Gun Medium Laser Ballistic Gun Assault Rifle Launcher Rocket Launcher Special Weapon Mining Laser Build | -11 -10 -10 -9 -9 -8 ------- Run | Scr Mat Min Mat Min Mat Slots Evolved 4 | . . . 2 . 2 Power . | . . . . . . Propulsion 1 | . . . 1 . . Utility 3 | . . . 1 . 2 Weapon . | . . . . . . Parts Attached 34 | 7 7 4 4 1 11 Power 4 | 1 2 . 1 . . Engine 4 | 1 2 . 1 . . Core . | . . . . . . Reactor . | . . . . . . Propulsion 11 | 2 2 1 . . 6 Treads 6 | . 1 . . . 5 Leg 1 | . . 1 . . . Wheel 3 | 2 1 . . . . Hover . | . . . . . . Flight 1 | . . . . . 1 Utility 6 | 2 . 1 2 . 1 Device 2 | 1 . 1 . . . Storage 1 | . . . 1 . . Processor 1 | 1 . . . . . Hackware 1 | . . . . . 1 Protection 1 | . . . 1 . . Artifact . | . . . . . . Weapon 13 | 2 3 2 1 1 4 Energy Gun 3 | 1 . 2 . . . Energy Cannon . | . . . . . . Ballistic Gun 6 | 1 3 . 1 . 1 Ballistic Cannon . | . . . . . . Launcher 1 | . . . . . 1 Special Weapon 3 | . . . . 1 2 Impact Weapon . | . . . . . . Slashing Weapon . | . . . . . . Piercing Weapon . | . . . . . . Special Melee Weapon . | . . . . . . Unidentified Prototypes . | . . . . . . Parts Lost 26 | . 6 5 3 . 12 Power 2 | . . 1 1 . . Propulsion 11 | . 3 1 1 . 6 Utility 2 | . 1 . . . 1 Weapon 11 | . 2 3 1 . 5 Highest Loss Streak 6 | . 3 5 3 . 6 Average Slot Usage (%) 60 | . 94 56 60 2 20 Engine 9 | . 14 10 10 . . Treads 3 | . 4 2 . . 11 Leg 4 | . . 8 10 . . Wheel 6 | . 20 . . . . Device 9 | . 13 14 10 . . Storage 4 | . . . 10 . . Processor 5 | . 14 14 1 . . Protection 3 | . . . 9 . . Energy Gun 4 | . 12 2 . . . Ballistic Gun 8 | . 15 6 7 . . Naked Turns 191 | . . . 4 123 64 Heaviest Build 30 | 9 10 6 30 1 2 Greatest Support 66 | 20 20 10 10 3 66 Greatest Overweight (x) 8 | . 1 1 8 . . Average Overweight (x) . | . . . 1 . . Largest Inventory Capacity 10 | 4 4 4 10 4 4 Average Capacity 6 | 4 4 4 9 4 4 Most Carried 4 | 4 4 3 4 4 4 Average Carried 3 | 1 3 2 2 3 3 Final Capacity 4 | 4 4 4 4 4 4 Final Carried 4 | 4 4 2 4 3 4 Class Distribution -------------------- 89% | Mutant 10% | Scavenger-Mutant Dominant Class ---------------- Mutant | -10/Materials Mutant | -10/Mines Mutant | -9/Materials Mutant | -9/Mines Mutant | -8/Materials Resources | -11 -10 -10 -9 -9 -8 ----------- Run | Scr Mat Min Mat Min Mat Matter Collected 331 | 191 140 . . . . Remotely . | . . . . . . Salvage Created 527 | 27 353 38 52 . 57 Parts 38 | 4 21 3 4 . 6 Haulers Intercepted 1 | . 1 . . . . Recyclers Shooed 1 | . 1 . . . . Parts Field Recycled . | . . . . . . Retrieved Matter . | . . . . . . Parts Self-Destructed . | . . . . . . Prevented . | . . . . . . Kills | -11 -10 -10 -9 -9 -8 ------- Run | Scr Mat Min Mat Min Mat Combat Hostiles Destroyed 17 | . 9 1 1 . 6 Guns 11 | . 9 1 1 . . AOE 6 | . . . . . 6 Classes Destroyed 5 | 1 3 . 1 . . Tunneler 1 | 1 . . . . . Hauler 1 | . 1 . . . . Swarmer 7 | . 3 . . . 4 Grunt 8 | . 6 1 . . 1 Sentry 2 | . . . 1 . 1 Best Kill Streak 6 | 1 4 1 1 . 6 Combat Bots Only 6 | . 3 1 1 . 6 Max Kills in Single Turn 3 | 1 2 1 1 . 3 Gunslinging 1 | . 1 . . . . Exploded 3 | . . . . . 3 Melee . | . . . . . . Uniques/NPCs Destroyed . | . . . . . . Combat | -11 -10 -10 -9 -9 -8 -------- Run | Scr Mat Min Mat Min Mat Damage Taken 3092 | . 777 341 325 26 1623 Core 927 | . 180 62 114 16 555 Absorbed by Shields . | . . . . . . Core Remaining (%) 56 | 100 . 3 . 67 . Volleys Fired 80 | 2 43 19 5 1 10 Largest 2 | 2 2 2 1 1 2 Hottest 100 | 70 70 85 23 100 40 Shots Fired 128 | 4 85 22 5 1 11 Gun 118 | 4 85 22 5 . 2 Cannon . | . . . . . . Launcher 7 | . . . . . 7 Special 3 | . . . . 1 2 Kinetic 75 | 2 50 16 5 . 2 Thermal 46 | 2 35 6 . 1 2 Explosive 7 | . . . . . 7 Electromagnetic . | . . . . . . Robot Hit Streak 12 | 2 10 12 3 . 4 Robot Miss Streak 4 | 1 4 2 2 . 1 Penetration Max . | . . . . . . Secondary Targets 2 | . 2 . . . . Max Gunslinging Chain 1 | . 1 . . . . Shots Hit Robots 81 | 2 49 18 4 . 8 Core Hits 54 | 1 22 10 2 . 19 Critical Hits . | . . . . . . Critical Kills . | . . . . . . Critical Parts Destroyed . | . . . . . . Melee Attacks . | . . . . . . Impact . | . . . . . . Slashing . | . . . . . . Piercing . | . . . . . . Sneak Attacks . | . . . . . . Combat Hostiles . | . . . . . . Follow-up Attacks . | . . . . . . Damage Inflicted 1433 | 33 522 205 63 . 610 Guns 820 | 33 522 183 63 . 19 Cannons . | . . . . . . Explosions 558 | . . . . . 558 Melee . | . . . . . . Ramming 52 | . . 22 . . 30 Kinetic 463 | 8 259 114 63 . 19 Thermal 360 | 25 263 69 . . 3 Explosive 558 | . . . . . 558 Electromagnetic . | . . . . . . Impact . | . . . . . . Slashing . | . . . . . . Piercing . | . . . . . . Highest Corruption . | . . . . . . Average Corruption . | . . . . . . Corruption Purged . | . . . . . . Overload Shots . | . . . . . . Overflow Damage . | . . . . . . Projectiles . | . . . . . . Explosions . | . . . . . . Melee . | . . . . . . Knockbacks . | . . . . . . Impact . | . . . . . . Kinetic . | . . . . . . Secondary . | . . . . . . Self-Inflicted Damage 130 | . . 8 . . 122 Shots 6 | . . . . . 6 Rammed 17 | . . 7 1 . 9 Targets Rammed 17 | . . 7 1 . 9 Kicked . | . . . . . . Crushed . | . . . . . . Highest Temperature 172 | 30 172 48 . . 3 Average Temperature 58 | 18 63 27 . . 3 Received Heat Transfer 1098 | . 393 189 93 . 423 Siege Activations . | . . . . . . Robots Corrupted . | . . . . . . Combat Hostiles . | . . . . . . Parts Fried . | . . . . . . Impact Corruptions . | . . . . . . Robots Melted . | . . . . . . Combat Hostiles . | . . . . . . Parts Melted 1 | . . 1 . . . Heat Transferred 1037 | 74 777 161 . . 25 Parts Sabotaged . | . . . . . . Parts Stolen . | . . . . . . Parts Stripped . | . . . . . . Power Chain Reactions . | . . . . . . Missiles Intercepted . | . . . . . . Alert | -11 -10 -10 -9 -9 -8 ------- Run | Scr Mat Min Mat Min Mat Peak Influence 229 | 5 229 58 45 28 185 Initial 38 | . 3 38 2 13 10 Average 49 | 1 115 28 3 13 68 Maximum Alert Level 1 | . 1 . . . . Low Security (%) 96 | 100 87 100 100 100 100 Level 1 3 | . 12 . . . . Level 2 . | . . . . . . Level 3 . | . . . . . . Level 4 . | . . . . . . Level 5 . | . . . . . . High Security . | . . . . . . Max Security . | . . . . . . Squads Dispatched 6 | . 3 . 1 . 2 Investigation 2 | . 2 . . . . Extermination . | . . . . . . Reinforcement 4 | . 1 . 1 . 2 Assault . | . . . . . . Garrison . | . . . . . . Intercept . | . . . . . . Construction Impeded . | . . . . . . Haulers Reinforced . | . . . . . . Stealth | -11 -10 -10 -9 -9 -8 --------- Run | Scr Mat Min Mat Min Mat Distress Signals 7 | . 3 . . . 4 Communications Jammed . | . . . . . . Distress Signals . | . . . . . . Times Spotted 75 | . 20 3 13 4 35 Peak Tracking Total 15 | . 5 2 11 3 15 Tactical Retreats 6 | . 1 . . 1 4 Traps | -11 -10 -10 -9 -9 -8 ------- Run | Scr Mat Min Mat Min Mat Traps Triggered 1 | . 1 . . . . Indirectly . | . . . . . . Trap Hack Attempts . | . . . . . . Triggered . | . . . . . . Disarmed . | . . . . . . Reprogrammed . | . . . . . . Reused . | . . . . . . Traps Extracted . | . . . . . . Installed . | . . . . . . Triggered . | . . . . . . Machines | -11 -10 -10 -9 -9 -8 ---------- Run | Scr Mat Min Mat Min Mat Machines Disabled 1 | . 1 . . . . Max in Single Turn 1 | . 1 . . . . Machines Sabotaged . | . . . . . . Garrisons Compromised . | . . . . . . Overloaded Fab Kills . | . . . . . . Fab Network Shutdowns . | . . . . . . Hacking | -11 -10 -10 -9 -9 -8 --------- Run | Scr Mat Min Mat Min Mat Machines Accessed 10 | . 6 . 2 . 2 Terminals 7 | . 4 . 1 . 2 Fabricators . | . . . . . . Repair Stations . | . . . . . . Recycling Units 3 | . 2 . 1 . . Scanalyzers . | . . . . . . Garrison Access . | . . . . . . Total Hacks 37 | . 20 . 9 . 8 Successful 17 | . 12 . 2 . 3 Failed 20 | . 8 . 7 . 5 Catastrophic 4 | . 1 . . . 3 Database Lockouts . | . . . . . . Manual 28 | . 15 . 10 . 3 Terminals 26 | . 14 . 4 . 8 Fabricators . | . . . . . . Repair Stations . | . . . . . . Recycling Units 11 | . 6 . 5 . . Scanalyzers . | . . . . . . Garrison Access . | . . . . . . Terminal Hacks 8 | . 4 . 1 . 3 Robot Analysis 1 | . . . . . 1 Branch Access Points 1 | . . . 1 . . Terminal Index 1 | . 1 . . . . Unreport Threat 2 | . . . . . 2 Locate Traps 1 | . 1 . . . . Zone Layout 2 | . 2 . . . . Fabricator Hacks . | . . . . . . Repair Station Hacks . | . . . . . . Recycling Unit Hacks 1 | . 1 . . . . Retrieve Components 1 | . 1 . . . . Scanalyzer . | . . . . . . Garrison Access Hacks . | . . . . . . Unauthorized Hacks 8 | . 7 . 1 . . Terminals 6 | . 5 . 1 . . Track 2 | . 2 . . . . Botnet 4 | . 3 . 1 . . Fabricators . | . . . . . . Repair Stations . | . . . . . . Recycling Units 2 | . 2 . . . . Mask 2 | . 2 . . . . Scanalyzers . | . . . . . . Garrison Access . | . . . . . . Data Cores Recovered . | . . . . . . Used . | . . . . . . Hacking Detections 10 | . 6 . 2 . 2 Full Trace Events 2 | . 1 . 1 . . Feedback Events . | . . . . . . Feedback Blocked . | . . . . . . Robot Schematics Acquired . | . . . . . . Robots Built . | . . . . . . Matter . | . . . . . . Time . | . . . . . . Total Robot Build Rating . | . . . . . . Part Schematics Acquired . | . . . . . . Parts Built . | . . . . . . Matter . | . . . . . . Time . | . . . . . . Total Part Build Rating . | . . . . . . Parts Repaired . | . . . . . . Time . | . . . . . . Parts Recycled . | . . . . . . Recycled Matter . | . . . . . . Retrieved Matter . | . . . . . . Retrieved Components 10 | . 10 . . . . Parts Scanalyzed . | . . . . . . Part Schematics Acquired . | . . . . . . Parts Damaged . | . . . . . . Bothacking | -11 -10 -10 -9 -9 -8 ------------ Run | Scr Mat Min Mat Min Mat Used RIF Installer . | . . . . . . Robots Hacked . | . . . . . . Non-combat . | . . . . . . Combat . | . . . . . . Robot Hacks Applied . | . . . . . . Relay Couplers Released . | . . . . . . Robots Rewired . | . . . . . . Allies Hacked . | . . . . . . Hacks Repelled . | . . . . . . Allies | -11 -10 -10 -9 -9 -8 -------- Run | Scr Mat Min Mat Min Mat Total Allies . | . . . . . . Largest Group . | . . . . . . Highest-Rated Group . | . . . . . . Highest-Rated Ally . | . . . . . . Total Orders . | . . . . . . Ally Attacks . | . . . . . . Total Damage . | . . . . . . Kills . | . . . . . . Allies Corrupted . | . . . . . . Allies Melted . | . . . . . . Intel | -11 -10 -10 -9 -9 -8 ------- Run | Scr Mat Min Mat Min Mat Robot Analysis Total 1 | . . . . . 1 Derelict Logs Recovered 1 | . . . . 1 . Drone Launches . | . . . . . . Drone Recoveries . | . . . . . . Exploration | -11 -10 -10 -9 -9 -8 ------------- Run | Scr Mat Min Mat Min Mat Turns Passed 1654 | 60 521 69 624 154 226 Spaces Moved 1090 | 49 383 27 193 98 340 Core 507 | 1 25 24 37 98 322 Treads 15 | . 8 . . . 7 Legs 159 | . . 3 156 . . Wheels 398 | 48 350 . . . . Hover . | . . . . . . Flight 11 | . . . . . 11 Fastest Speed 40 | 50 80 50 50 50 40 Average Speed 82 | 79 82 61 153 50 52 Slowest Speed 450 | 80 160 120 450 50 145 Overloaded Moves . | . . . . . . Propulsion Burnouts . | . . . . . . Robots Hopped 1 | . . . . . 1 Cave-ins Triggered . | . . . . . . Exploration Rate (%) 29 | 3 65 15 23 22 49 Regions Visited 5 Branch Regions 2 Pre-discovered Areas 1 | . . . . 1 . Known Exits Taken 1 | . . . 1 . . Unknown Exits Taken 4 | 1 1 1 . 1 . Scrap Searched . | . . . . . . Spaces Dug 1 | . . . . 1 . Terrain Destroyed 34 | . . . . 1 33 Melee . | . . . . . . Projectile 1 | . . . . 1 . AOE 33 | . . . . . 33 Terrain Rammed . | . . . . . . Walls Destroyed . | . . . . . . Machines Disabled . | . . . . . . Actions | -11 -10 -10 -9 -9 -8 --------- Run | Scr Mat Min Mat Min Mat Total 1717 | 62 507 59 518 199 372 Wait 477 | 1 67 3 306 100 . Move 1084 | 48 382 26 193 97 338 Hop 1 | . . . . . 1 Pick Up 15 | 4 3 . 5 . 3 Fast Attach 21 | 7 1 2 2 . 9 Attach 9 | . 2 2 2 1 2 Detach . | . . . . . . Swap 4 | . 4 . . . . Drop 10 | . 5 . 5 . . Fire 80 | 2 43 19 5 1 10 Melee . | . . . . . . Ram 16 | . . 7 . . 9 Kick . | . . . . . . Crush . | . . . . . . Escape Stasis . | . . . . . . Rewire . | . . . . . . Trap . | . . . . . . Miscellaneous . | . . . . . . Route ------- -11/Scrapyard -10/Materials (discovered 4 exits: *Mat x2 / [*Min x2]) -10/Mines -9/Materials (discovered 4 exits: *Min x2 / Sto x2) -9/Mines -8/Materials History --------- Turn | Location | Event 14 | -11/Scrapyard | Discovered new exit (range 15) 61 | -11/Scrapyard | Entered Materials 256 | -10/Materials | Discovered new exit (range 17) 302 | -10/Materials | Build established: Mutant 323 | -10/Materials | Discovered new exit (range 15) 423 | -10/Materials | Discovered new exit (range 9) 492 | -10/Materials | Discovered new exit (range 4) 508 | -10/Materials | Core integrity fell below 50% 582 | -10/Materials | Entered Mines 588 | -10/Mines | Lost 3 parts (1n1u1w) 593 | -10/Mines | Core integrity fell below 20% 617 | -10/Mines | Assembled infested the area 648 | -10/Mines | Discovered new exit (range 8) 651 | -10/Mines | Entered Materials 651 | -9/Materials | Evolved 2 slots: Propulsion x1, Utility x1 661 | -9/Materials | Lost 5 parts (1p1n3w) 1257 | -9/Materials | Identified exit to Mines 1257 | -9/Materials | Identified exit to Storage 1275 | -9/Materials | Entered Mines 1302 | -9/Mines | Lost 3 parts (1p1n1w) 1426 | -9/Mines | Learned location of Storage (-9) 1428 | -9/Mines | Discovered new exit (range 2) 1429 | -9/Mines | Entered Materials 1429 | -8/Materials | Evolved 2 slots: Utility x2 1571 | -8/Materials | Lost 6 parts (2n4w) 1619 | -8/Materials | Core integrity fell below 50% 1634 | -8/Materials | Core integrity fell below 20% 1650 | -8/Materials | Lost 5 parts (4n1u) 1655 | -8/Materials | Destroyed by S-10 Pest with Light Assault Rifle Last Messages --------------- Purged threat record, alert level lowered. 01578_ W-25 Informer sends out distress signal. 01600_ Adv. Treads destroyed. 01611_ Acquired Cesium-ion Thruster. 01613_ Adv. Treads destroyed. 01618_ System Shield destroyed. 01619_ Cesium-ion Thruster destroyed. 01624_ K-01 Serf cleans the Electrolysis Chamber. 01628_ W-25 Informer sends out distress signal. 01630_ K-01 Serf cleans the Repair Station. 01630_ K-01 Serf cleans the Electrolysis Chamber. 01637_ S-10 Pest destroyed. 01638_ K-01 Serf collects debris. 01643_ W-25 Informer sends out distress signal. 01646_ Slammed into W-25 Informer. 01647_ Slammed into A-02 Transporter. 01649_ Slammed into G-47 Trooper. 01652_ Slammed into S-10 Pest. 01654_ Slammed into A-02 Transporter. [Achievement: I Think I Know What's Going On] Map ----- +----------------------------------------------------+ | #+####/###################+## #????? | | # #????????????? #### """ """ #????? | | # #????????????? ???# """ """ #????? | | # """ #???????????? #### """ """ #????? | | ! + """ #???????????? #""" #????? | | # """ #???????????" #"R #????? | | #] #???????????"""" #""" """ """ #????? | | ########?????????? """ #### """ """ #????? | | #?????????????????#######??# """ """ #????? | | #??????????????????????????# #####? | | #####??????????????????????????# * # | | ???????????????????????????????# """ """%* # | | ?????????????????????????????? + """ """= / | | ?????????????????????????????? # """ """ # | | ???????????????????????????????# #? | | ???????????????????????????????# #? | | ???????????????????????????????### #? | | ?????????????????????????????????# +? | | ?????????????????????????????????# ####### ####? | | ?????????????????????????????????# #?????# #???? | | ?????????????????????????????????# #?????# #???? | | ?????????????????????????????????# #######+#???? | | ????????????????????????????????## ##[ #???? | | ?????????????##### ?????????????# # #???? | | ?????????? ##########g # """ #???? | | ??????????! Y[ a @ s g + """ #???? | | ?????????? ########## w # """ #???? | | ?????????????##### ?????????????# # #???? | | ????????????????????????????????###+##########???? | | ????????????????????????????????? ???????????? | | ????????????????????????????????# #?????????? | | ????????????????????????????????# #?????????? | | ????????????????????????????????# !!! #?????????? | | ????????????????????????????????# !!! #?????????? | | ????????????????????????????????# !! #?????????? | | ????????????????????????????????########?????????? | | ?????????????????????????????????????????????????? | | ?????????????????????????????????????????????????? | | ?????????????????????????????????????????????????? | | ?????????????????????????????????????????????????? | | ?????????????????????????????????????????????????? | | ?????????????????????????????????????????????????? | | ?????????????????????????????????????????????????? | | ?????????????????????????????????????????????????? | | ?????????????????????????????????????????????????? | | ?????????????????????????????????????????????????? | | ?????????????????????????????????????????????????? | | ?????????????????????????????????????????????????? | | ?????????????????????????????????????????????????? | | ?????????????????????????????????????????????????? | +----------------------------------------------------+ Best States ------------- Heat Dissipation 38 Energy Generation 10 Energy Capacity 250 Matter Stores 240 Matter Capacity 300 Sight Range 16 Terrain Scan Range 16 Terrain Scan Density 60 Armor Coverage 225 Evasion (%) 50 Recoil Reduction 3 Defensive Hacking 10 Item Schematics ----------------- None Robot Schematics ------------------ None Fabricated ------------ Nothing Alien Tech Used ----------------- None Achievements -------------- I Think I Know What's Going On Challenges ------------ None Game ------ Seed FactoryShrapnelEdition Manual? 0 Play Time 00:14:50 Cumulative 37.4 hours Start 2022.02.07 @ 18:47:04 End 2022.02.07 @ 19:48:05 Sessions 3 Manual Loads 0 Difficulty Rogue Special Mode None Game No. 65 Rogue 65 Adventurer 0 Explorer 0 Win Type - Total 0 Types 0/0/0/0/0/0/0/0/0 Lore% 50 Gallery% 45 Achievement% 39 Wizard Run 0 Options --------- ASCII 0 Keyboard 0 Movement Numpad Keybinds 0 Fullscreen 1 Font 24/Smallcaps Map View 76x50 Tactical HUD 1 Map Filters NONE Filters NONE Steam 1 RUN: eb2ef3c5-beed-4944-8271-1156aea1dbed